fUST/lending_fUST_20240215
["ID","MTS","AMOUNT","RATE_DAILY","PERIOD"]
[314058940,1707949848088,-500.0,0.00038356,14]
[314058941,1707949848100,-500.0,0.00038356,14]
[314058942,1707949848111,-500.0,0.00038356,14]
[314058943,1707949848122,-500.0,0.00038356,14]
[314058944,1707949848133,-500.0,0.00038356,14]
[314058945,1707949848144,-500.0,0.00038356,14]
[314058946,1707949848158,-602.99,0.00038356,14]
[314058947,1707949848170,-500.0,0.00038356,14]
[314058948,1707949848182,-500.0,0.00038356,14]
[314058949,1707949848195,-500.0,0.00038356,14]
[314058950,1707949848207,-500.0,0.00038356,14]
[314058951,1707949848220,-500.0,0.00038356,14]
[314058952,1707949848231,-500.0,0.00038356,14]
[314058953,1707949848241,-1316.19,0.00038356,14]
[314058954,1707949848252,-500.0,0.00038356,14]
[314058955,1707949848263,-1316.19,0.00038356,14]
[314058956,1707949848274,-1316.19,0.00038356,14]
[314058957,1707949848285,-500.0,0.00038356,14]
[314058958,1707949848297,-1316.19,0.00038356,14]
[314058959,1707949848400,-500.0,0.00038356,14]
[314058960,1707949848412,-1316.19,0.00038356,14]
[314058961,1707949848421,-500.0,0.00038356,14]
[314058962,1707949848430,-1316.19,0.00038356,14]
[314058963,1707949848439,-500.0,0.00038356,14]
[314058964,1707949848449,-1316.19,0.00038356,14]
[314058965,1707949848458,-500.0,0.00038356,14]
[314058966,1707949848467,-500.0,0.00038356,14]
[314058967,1707949848476,-1316.19,0.00038356,14]
[314058968,1707949848484,-475.84913808,0.00038356,14]
[314058969,1707949848625,-840.34086192,0.00038356,14]
[314058970,1707949848634,-1316.19,0.00038356,14]
[314058971,1707949848643,-500.0,0.00038356,14]
[314058972,1707949848652,-182.29292872,0.00038356,14]
[314058973,1707949848661,-354.29,0.00038356,14]
[314058974,1707949848670,-1316.19,0.00038356,14]
[314058975,1707949848678,-502.22643844,0.00038356,14]
[314058976,1707949848687,-1316.19,0.00038356,14]
[314058977,1707949848696,-1316.19,0.00038356,14]
[314058978,1707949848706,-1316.19,0.00038356,14]
[314058979,1707949848715,-1316.19,0.00038356,14]
[314058980,1707949848725,-1316.19,0.00038356,14]
[314058981,1707949848734,-1316.19,0.00038356,14]
[314058982,1707949848744,-1316.19,0.00038356,14]
[314058983,1707949848755,-443.45807987,0.00038356,14]
[314058986,1707950165096,156.0183108,0.00020281,2]
[314059052,1707951038020,-196.30338079,0.00026191,2]
[314059054,1707951038030,-168.557448,0.00027978,2]
[314059056,1707951038044,-166.666666,0.00030134,2]
[314059058,1707951038054,-4052.09351299,0.00030596,2]
[314059061,1707951038076,-2857.05636563,0.00030596,2]
[314059167,1707951041403,-17990.85012138,0.00030596,2]
[314059168,1707951041413,-582.037475,0.00030883,2]
[314059169,1707951041422,-166.666666,0.00030956,2]
[314059170,1707951041432,-218.47409521,0.00031591,2]
[314059171,1707951041455,-2687.77725987,0.00031591,2]
[314059172,1707951041464,-166.666666,0.00031777,2]
[314059173,1707951041473,-4269.29048058,0.00031928,4]
[314059174,1707951041484,-8749.63928731,0.00031928,5]
[314059204,1707951043026,-256.17,0.00031928,5]
[314059206,1707951043039,-345.12869652,0.00031928,5]
[314059494,1707951046161,-2288.51586688,0.00031928,5]
[314059497,1707951046174,-715.31892327,0.00031928,5]
[314060382,1707951260577,155.11311357,0.000176,2]
[314060384,1707951269229,24926.3746724,0.00021,2]
[314060385,1707951269779,9152.50616459,0.00021,2]
[314060386,1707951269947,175.72920133,0.00021,2]
[314060388,1707951362168,-2103.0,0.00022,2]
[314060396,1707951928113,-20000.0,0.00037706,45]
[314060462,1707952232120,-9785.52381892,0.00022,2]
[314060464,1707952232130,-965.36338691,0.00022,2]
[314060466,1707952232139,-200.0,0.00024199,7]
[314060468,1707952232148,-1748.19992455,0.00025,2]
[314060470,1707952232158,-4371.37703952,0.00025,2]
[314060472,1707952232167,-166.666666,0.00025184,2]
[314060474,1707952232175,-291.018737,0.00025786,2]
[314060476,1707952232184,-166.666666,0.00025871,2]
[314060478,1707952232193,-2425.59485646,0.00026542,2]
[314060481,1707952232205,-1064.40363431,0.00026542,2]
[314060483,1707952232216,-8593.20700965,0.00026542,2]
[314060544,1707952238160,-2591.0,0.00026542,2]
[314060546,1707952238172,-2361.30795066,0.00026542,2]
[314060854,1707952241286,-2835.68008452,0.00026542,2]
[314060855,1707952241296,-166.666666,0.00026557,2]
[314060856,1707952241305,-280.0,0.00026619,15]
[314060857,1707952241315,-166.666666,0.00027244,2]
[314060858,1707952241324,-20074.09839927,0.000275,2]
[314060859,1707952241334,-166.666666,0.0002793,2]
[314060861,1707952241343,-166.666666,0.00028617,2]
[314060863,1707952241352,-1113.34,0.0002899,3]
[314060865,1707952241362,-2123.06,0.0002899,3]
[314060867,1707952241371,-1769.21,0.0002899,3]
[314060869,1707952241380,-835.84242247,0.00029,2]
[314060871,1707952241389,-17969.08579802,0.00029,2]
[314060873,1707952241398,-224.6617888,0.00029043,2]
[314060875,1707952241407,-391.0,0.00029281,15]
[314060877,1707952241416,-704.96094169,0.00029828,2]
[314060879,1707952241425,-963.69138618,0.000299,2]
[314061083,1707952243331,-1312.30588419,0.000299,2]
[314061085,1707952243340,-167.45444452,0.0003,2]
[314061099,1707952243454,-7416.62506351,0.0003,2]
[314061102,1707952243469,-2201.48481533,0.0003,2]
[314061104,1707952243478,-311.15505257,0.0003,2]
[314061106,1707952243487,-1293.26159718,0.0003,2]
[314061108,1707952243496,-702.07459761,0.0003,2]
[314061110,1707952243504,-9674.52272218,0.0003,2]
[314061112,1707952243513,-500.35724084,0.0003,2]
[314061114,1707952243523,-256.0,0.0003,2]
[314061116,1707952243531,-198.41923569,0.0003013,2]
[314061118,1707952243541,-170.9583231,0.00030959,2]
[314061120,1707952243550,-353.39471559,0.00031,4]
[314061121,1707952243559,-9299.92611939,0.00031,2]
[314061123,1707952243568,-310.83582675,0.00031927,7]
[314061126,1707952243578,-17313.75560794,0.00031928,5]
[314061128,1707952243587,-3057.84140447,0.00031928,5]
[314061130,1707952243596,-504.86072778,0.00031928,2]
[314061132,1707952243605,-9993.79262153,0.00031928,5]
[314061134,1707952243614,-9369.00896271,0.00031985,5]
[314061136,1707952243623,-561.37688012,0.0003199,7]
[314061138,1707952243632,-200.0,0.00032209,15]
[314061140,1707952243641,-348.0,0.00032209,15]
[314061142,1707952243650,-192.25041619,0.00033524,2]
[314061144,1707952243659,-203.856,0.00033535,2]
[314061146,1707952243668,-185.721238,0.00033652,2]
[314061148,1707952243677,-1000.364035,0.000347,20]
[314061150,1707952243685,-704.96094169,0.00034828,2]
[314061152,1707952243695,-12723.42901826,0.00034878,2]
[314061154,1707952243703,-303.224751,0.000349,17]
[314061155,1707952243712,-151.46712631,0.00035,2]
[314061157,1707952243725,-1296.0,0.00035,7]
[314061159,1707952243734,-150.0,0.00035329,2]
[314061162,1707952243744,-200.0,0.0003543,15]
[314061164,1707952243753,-200.0,0.0003543,15]
[314061166,1707952243762,-368.0,0.0003543,15]
[314061168,1707952243771,-500.0,0.00035616,2]
[314061170,1707952243780,-250.0,0.00035999,2]
[314061172,1707952243789,-186.0,0.00036,2]
[314061173,1707952243798,-22082.2627305,0.00036,14]
[314061176,1707952243808,-5000.0,0.00036218,7]
[314061178,1707952243817,-150.0,0.00036329,2]
[314061180,1707952243827,-500.0,0.00036684,2]
[314061182,1707952243836,-5200.0,0.00037,7]
[314061184,1707952243845,-5149.53453397,0.00037,3]
[314061186,1707952243854,-150.0,0.00037329,2]
[314061188,1707952243863,-155.0,0.00037356,2]
[314061190,1707952243872,-750.0,0.00037369,2]
[314061192,1707952243880,-186.0,0.00037397,2]
[314061194,1707952243889,-13556.31581778,0.00037706,45]
[314061196,1707952243899,-1000.0,0.00037706,14]
[314061198,1707952243909,-35642.36830711,0.00037708,2]
[314061200,1707952243920,-220.66650164,0.00037708,2]
[314061202,1707952243929,-151.526744,0.00037792,2]
[314061204,1707952243938,-151.0,0.00037794,2]
[314061206,1707952243947,-151.0,0.00037806,2]
[314061208,1707952243956,-500.0,0.00037807,15]
[314061210,1707952243966,-500.0,0.00037807,15]
[314061212,1707952243975,-195.34760579,0.00037807,15]
[314061214,1707952243984,-436.47186064,0.00037807,15]
[314061216,1707952243993,-191.48968414,0.00037807,15]
[314061218,1707952244002,-539.20602177,0.00037807,15]
[314061220,1707952244011,-500.0,0.00037807,15]
[314061222,1707952244021,-397.43698661,0.00037807,15]
[314061224,1707952244030,-151.0,0.00037807,2]
[314061226,1707952244042,-151.0,0.00037807,2]
[314061228,1707952244052,-9014.7,0.00037807,2]
[314061230,1707952244061,-14248.77,0.00037808,14]
[314061231,1707952244069,-14248.77,0.00037808,14]
[314061232,1707952244078,-14248.77,0.00037808,14]
[314061233,1707952244087,-14248.77,0.00037808,14]
[314061234,1707952244096,-14248.77,0.00037808,14]
[314061235,1707952244105,-14248.77,0.00037808,14]
[314061236,1707952244114,-14248.77,0.00037808,14]
[314061237,1707952244124,-14248.77,0.00037808,14]
[314061238,1707952244133,-14248.77,0.00037808,14]
[314061239,1707952244141,-14248.77,0.00037808,14]
[314061240,1707952244150,-14248.77,0.00037808,14]
[314061241,1707952244159,-7171.84,0.00037808,14]
[314061242,1707952244168,-7171.84,0.00037808,14]
[314061243,1707952244176,-7171.84,0.00037808,14]
[314061244,1707952244185,-7171.84,0.00037808,14]
[314061246,1707952244195,-7171.84,0.00037808,14]
[314061248,1707952244204,-7171.84,0.00037808,14]
[314061250,1707952244213,-7171.84,0.00037808,14]
[314061252,1707952244222,-7171.84,0.00037808,14]
[314061254,1707952244231,-7171.84,0.00037808,14]
[314061256,1707952244240,-7171.84,0.00037808,14]
[314061258,1707952244249,-7171.84,0.00037808,14]
[314061260,1707952244258,-543.39,0.00037808,14]
[314061262,1707952244267,-543.39,0.00037808,14]
[314061264,1707952244276,-543.39,0.00037808,14]
[314061266,1707952244285,-543.39,0.00037808,14]
[314061268,1707952244293,-543.39,0.00037808,14]
[314061270,1707952244302,-543.39,0.00037808,14]
[314061272,1707952244311,-543.39,0.00037808,14]
[314061274,1707952244320,-543.39,0.00037808,14]
[314061276,1707952244329,-543.39,0.00037808,14]
[314061278,1707952244339,-543.39,0.00037808,14]
[314061280,1707952244348,-543.39,0.00037808,14]
[314061282,1707952244357,-2372.73,0.00037808,14]
[314061284,1707952244366,-2372.73,0.00037808,14]
[314061286,1707952244375,-2372.73,0.00037808,14]
[314061288,1707952244384,-18548.88,0.00037808,14]
[314061290,1707952244393,-2372.73,0.00037808,14]
[314061292,1707952244402,-18548.88,0.00037808,14]
[314061294,1707952244411,-2372.73,0.00037808,14]
[314061296,1707952244420,-18548.88,0.00037808,14]
[314061298,1707952244428,-18548.88,0.00037808,14]
[314061300,1707952244438,-18548.88,0.00037808,14]
[314061302,1707952244447,-18548.88,0.00037808,14]
[314061304,1707952244459,-18548.88,0.00037808,14]
[314061306,1707952244468,-18548.88,0.00037808,14]
[314061308,1707952244477,-18548.88,0.00037808,14]
[314061310,1707952244486,-7662.35984015,0.00037808,14]
[314061479,1707952246222,-0.0619,0.00031975,3]
[314065337,1707952747030,1489.24261168,0.00036778,120]
[314065369,1707953432269,-2232.78370946,0.00031973,5]
[314065370,1707953432280,-2998.13778646,0.00031983,5]
[314065371,1707953432289,-180.30740278,0.00031987,2]
[314065372,1707953432298,-158.0,0.00033,2]
[314065373,1707953432307,-158.0,0.00033151,2]
[314065374,1707953432317,-291.018737,0.0003317,2]
[314065375,1707953432326,-282.2749159,0.00033176,2]
[314065376,1707953432334,-6179.83781213,0.00033749,2]
[314065377,1707953432348,-2069.68471635,0.00033749,2]
[314065378,1707953432360,-16650.47747152,0.00033749,2]
[314065379,1707953432369,-158.0,0.00034521,2]
[314065380,1707953432378,-234.98698057,0.00035708,2]
[314065381,1707953432387,-5000.0,0.00036228,7]
[314065382,1707953432396,-162.0,0.00036247,2]
[314065383,1707953432405,-509.90625592,0.00036594,4]
[314065384,1707953432414,-164.61877762,0.00036686,2]
[314065385,1707953432424,-2187.19,0.00036768,3]
[314065386,1707953432433,-1822.66,0.00036768,3]
[314065387,1707953432443,-1518.88,0.00036768,3]
[314065388,1707953432454,-428.50000661,0.00036772,2]
[314065389,1707953432464,-37133.57309282,0.00036778,2]
[314065390,1707953432473,-168.246908,0.00036786,2]
[314065391,1707953432482,-306.0,0.00037123,2]
[314065392,1707953432491,-200.1809906,0.00037123,2]
[314065393,1707953432501,-200.1809906,0.00037123,2]
[314065394,1707953432510,-200.1809906,0.00037123,2]
[314065395,1707953432520,-200.1809906,0.00037123,2]
[314065396,1707953432530,-200.1809906,0.00037123,2]
[314065397,1707953432539,-199.8043946,0.00037123,2]
[314065398,1707953432548,-155.0,0.00037356,2]
[314065399,1707953432557,-150.0,0.000378,33]
[314065400,1707953432566,-250.0,0.00037807,2]
[314065401,1707953432576,-10886.52015985,0.00037808,14]
[314065402,1707953432586,-18548.88,0.00037808,14]
[314065403,1707953432595,-327.95238013,0.00037808,14]
[314065404,1707953432604,-500.0,0.00037808,14]
[314065405,1707953432613,-605.01232788,0.00037808,14]
[314065406,1707953432623,-500.0,0.00037808,14]
[314065407,1707953432631,-500.0,0.00037808,14]
[314065408,1707953432641,-500.0,0.00037808,14]
[314065409,1707953432650,-500.0,0.00037808,14]
[314065410,1707953432659,-500.0,0.00037808,14]
[314065411,1707953432668,-364.52,0.00037808,14]
[314065412,1707953432677,-500.0,0.00037808,14]
[314065413,1707953432686,-634.07,0.00037808,14]
[314065414,1707953432695,-454.71886916,0.00037808,14]
[314065415,1707953432704,-500.0,0.00037808,14]
[314065416,1707953432713,-370.14344084,0.00037808,14]
[314065417,1707953432723,-314.02412757,0.00037808,14]
[314065418,1707953432732,-500.0,0.00037808,14]
[314065419,1707953432741,-500.0,0.00037808,14]
[314065420,1707953432750,-500.0,0.00037808,14]
[314065421,1707953432759,-500.0,0.00037808,14]
[314065422,1707953432769,-172.84,0.00037808,14]
[314065423,1707953432778,-500.0,0.00037808,14]
[314065424,1707953432786,-500.0,0.00037808,14]
[314065425,1707953432795,-500.0,0.00037808,14]
[314065426,1707953432804,-500.0,0.00037808,14]
[314065427,1707953432813,-612.24,0.00037808,14]
[314065428,1707953432822,-500.0,0.00037808,14]
[314065429,1707953432831,-174.04,0.00037808,14]
[314065430,1707953432840,-500.0,0.00037808,14]
[314065431,1707953432849,-949.58,0.00037808,14]
[314065432,1707953432858,-949.58,0.00037808,14]
[314065433,1707953432867,-949.58,0.00037808,14]
[314065434,1707953432876,-949.58,0.00037808,14]
[314065435,1707953432885,-949.58,0.00037808,14]
[314065436,1707953432894,-949.58,0.00037808,14]
[314065437,1707953432903,-949.58,0.00037808,14]
[314065438,1707953432913,-949.58,0.00037808,14]
[314065439,1707953432922,-949.58,0.00037808,14]
[314065440,1707953432931,-949.58,0.00037808,14]
[314065441,1707953432940,-949.58,0.00037808,14]
[314065442,1707953432949,-500.0,0.00037808,14]
[314065443,1707953432958,-500.0,0.00037808,14]
[314065444,1707953432968,-930.24,0.00037808,14]
[314065445,1707953432977,-930.24,0.00037808,14]
[314065446,1707953432986,-930.24,0.00037808,14]
[314065447,1707953432995,-930.24,0.00037808,14]
[314065448,1707953433004,-930.24,0.00037808,14]
[314065449,1707953433013,-930.24,0.00037808,14]
[314065450,1707953433022,-930.24,0.00037808,14]
[314065451,1707953433031,-930.24,0.00037808,14]
[314065452,1707953433040,-930.24,0.00037808,14]
[314065453,1707953433049,-930.24,0.00037808,14]
[314065454,1707953433059,-930.24,0.00037808,14]
[314065455,1707953433068,-2560.14,0.00037808,14]
[314065456,1707953433077,-2560.14,0.00037808,14]
[314065457,1707953433086,-2560.14,0.00037808,14]
[314065458,1707953433095,-2560.14,0.00037808,14]
[314065459,1707953433104,-2560.14,0.00037808,14]
[314065460,1707953433113,-500.0,0.00037808,14]
[314065461,1707953433123,-500.0,0.00037808,14]
[314065462,1707953433132,-586.6048642,0.00037808,14]
[314065463,1707953433141,-500.0,0.00037808,14]
[314065464,1707953433150,-500.0,0.00037808,14]
[314065465,1707953433159,-257.32,0.00037808,14]
[314065466,1707953433170,-500.0,0.00037808,14]
[314065467,1707953433179,-500.0,0.00037808,14]
[314065468,1707953433188,-500.0,0.00037808,14]
[314065469,1707953433198,-566.3,0.00037808,14]
[314065470,1707953433207,-799.28,0.00037808,14]
[314065471,1707953433216,-799.28,0.00037808,14]
[314065472,1707953433225,-799.28,0.00037808,14]
[314065473,1707953433234,-799.28,0.00037808,14]
[314065474,1707953433244,-799.28,0.00037808,14]
[314065475,1707953433253,-799.28,0.00037808,14]
[314065476,1707953433263,-799.28,0.00037808,14]
[314065477,1707953433272,-799.28,0.00037808,14]
[314065478,1707953433280,-799.28,0.00037808,14]
[314065479,1707953433291,-799.28,0.00037808,14]
[314065480,1707953433301,-198.59985144,0.00038229,2]
[314065481,1707953433311,-220.0,0.00038252,2]
[314065482,1707953433320,-220.0,0.00038252,2]
[314065483,1707953433329,-220.0,0.00038252,2]
[314065484,1707953433338,-220.0,0.00038252,2]
[314065485,1707953433347,-183.32881297,0.00038252,2]
[314065486,1707953433356,-8113.23,0.00038253,2]
[314065487,1707953433366,-6085.88227857,0.00038253,2]
[314065500,1707953438302,-895.57252214,0.00032011,2]
[314065502,1707953438311,-601.97785253,0.00038153,2]
[314065504,1707953438320,-2027.34772143,0.00038253,2]
[314065506,1707953438330,-3357.54622321,0.00038253,2]
[314065818,1707953441604,-1265.73,0.00038244,3]
[314065820,1707953441613,-1839.52962745,0.00038253,2]
[314065822,1707953441625,-2916.15414934,0.00038253,2]
[314065824,1707953441634,-1360.96585066,0.00038253,2]
[314070867,1707953804397,76483.29580347,0.0003,120]
[314070903,1707954634650,-1446.80617757,0.00032059,3]
[314070904,1707954634660,-3082.50731498,0.00032072,5]
[314070905,1707954634669,-459.25228129,0.00032072,2]
[314070906,1707954634681,-158.71807765,0.00032072,2]
[314070907,1707954634692,-5028.58192235,0.00036133,2]
[314070908,1707954634703,-8173.62246055,0.00036133,2]
[314070954,1707954640755,-11697.7956171,0.00036133,2]
[314070955,1707954640769,-156.65798704,0.00036144,2]
[314070956,1707954640778,-250.0,0.00036276,2]
[314070957,1707954640786,-168.591889,0.00036976,2]
[314070958,1707954640796,-155.0,0.00037355,2]
[314070960,1707954640805,-153.0,0.00037753,2]
[314070962,1707954640815,-514.35,0.00037808,14]
[314070964,1707954640825,-514.35,0.00037808,14]
[314070965,1707954640835,-514.35,0.00037808,14]
[314070966,1707954640845,-514.35,0.00037808,14]
[314070967,1707954640854,-628.88,0.00037808,14]
[314070968,1707954640863,-628.88,0.00037808,14]
[314070969,1707954640873,-628.88,0.00037808,14]
[314070970,1707954640882,-628.88,0.00037808,14]
[314070971,1707954640891,-2273.19,0.00037808,14]
[314070972,1707954640900,-2273.19,0.00037808,14]
[314070973,1707954640910,-2273.19,0.00037808,14]
[314070974,1707954640919,-2273.19,0.00037808,14]
[314070976,1707954640929,-500.0,0.00037808,14]
[314070977,1707954640938,-500.0,0.00037808,14]
[314070978,1707954640947,-500.0,0.00037808,14]
[314070979,1707954640956,-500.0,0.00037808,14]
[314070980,1707954640965,-500.0,0.00037808,14]
[314070981,1707954640974,-500.0,0.00037808,14]
[314070982,1707954640983,-500.0,0.00037808,14]
[314070983,1707954640992,-500.0,0.00037808,14]
[314070984,1707954641002,-13467.999999,0.0003799,2]
[314070985,1707954641011,-612.36,0.0003819,3]
[314070986,1707954641020,-1167.74,0.0003819,3]
[314070987,1707954641029,-973.11,0.0003819,3]
[314070988,1707954641039,-810.93,0.0003819,3]
[314070989,1707954641047,-3926.53501695,0.000382,60]
[314070990,1707954641059,-14064.28988862,0.000382,60]
[314070991,1707954641071,-7966.49400263,0.000382,60]
[314070992,1707954641083,-2585.6810918,0.000382,60]
[314070993,1707954641092,-514.35,0.00038252,14]
[314070994,1707954641101,-294.10638369,0.00038252,14]
[314071001,1707954641728,-675.77,0.0003819,3]
[314071003,1707954641738,-220.24361631,0.00038252,14]
[314071005,1707954641748,-628.88,0.00038252,14]
[314071007,1707954641758,-628.88,0.00038252,14]
[314071009,1707954641771,-1239.20997379,0.00038252,14]
[314071012,1707954641783,-755.11219914,0.00038252,14]
[314071014,1707954641795,-278.86782707,0.00038252,14]
[314071016,1707954641805,-500.0,0.00038252,14]
[314071018,1707954641814,-500.0,0.00038252,14]
[314071019,1707954641822,-627.16183728,0.00038252,14]
[314071020,1707954641832,-543.6456951,0.00038253,2]
[314071021,1707954641846,-427.63664462,0.00038253,2]
[314071504,1707955837713,-280.15298294,0.00022,2]
[314071506,1707955837722,-163.83177483,0.000289,2]
[314071508,1707955837731,-715.4821902,0.00028939,2]
[314071510,1707955837740,-422.16862063,0.00029,2]
[314071512,1707955837749,-140.48993927,0.000293,2]
[314071514,1707955837761,-354.36911233,0.000293,2]
[314071516,1707955837771,-152.11265099,0.000299,2]
[314071830,1707955840999,-811.57873519,0.000299,2]
[314071832,1707955841008,-188.07445145,0.0003,2]
[314071834,1707955841020,-765.7294,0.0003,2]
[314071837,1707955841032,-57.69014855,0.0003,2]
[314071839,1707955841041,-3926.20985145,0.0003,2]
[314071841,1707955841053,-297.91664767,0.0003,2]
[314071843,1707955841065,-3509.4058079,0.0003,2]
[314071845,1707955841075,-1750.98543694,0.0003,2]
[314071847,1707955841087,-409.19144557,0.0003,2]
[314071849,1707955841098,-200.0,0.0003,2]
[314071851,1707955841107,-239.0,0.00030557,2]
[314071853,1707955841116,-12857.66185105,0.00030557,2]
[314071945,1707955842733,-500.0,0.00030557,2]
[314072148,1707957033307,-2327.58920465,0.00026191,2]
[314072150,1707957033316,-597.22279589,0.00028457,2]
[314072152,1707957033325,-168.414045,0.00030266,2]
[314072154,1707957033335,-1359.570151,0.00030328,2]
[314072156,1707957033344,-1456.8751199,0.0003054,2]
[314072158,1707957033354,-166.666666,0.00030677,2]
[314072160,1707957033365,-17863.2074621,0.00030956,2]
[314072163,1707957033376,-1005.96194501,0.00031,4]
[314072165,1707957033386,-4562.7646538,0.00031,2]
[314072167,1707957033397,-250.0,0.00031408,2]
[314072168,1707957033408,-166.666666,0.00031723,2]
[314072171,1707957033419,-167.92149,0.00031942,2]
[314072173,1707957033429,-561.37688012,0.0003199,7]
[314072174,1707957033438,-8629.01340562,0.00032044,4]
[314072176,1707957033448,-185.39110768,0.00032061,2]
[314072178,1707957033459,-4423.68150447,0.00032095,4]
[314072179,1707957033470,-171.0131344,0.00032187,2]
[314072181,1707957033479,-166.666666,0.00032768,2]
[314072183,1707957033489,-158.0,0.00033,2]
[314072185,1707957033500,-224.6617888,0.00033357,2]
[314072187,1707957033508,-23475.02732057,0.00033447,2]
[314072189,1707957033520,-1424.97267943,0.00033447,2]
[314072191,1707957033530,-597.22279589,0.00033457,2]
[314072193,1707957033539,-166.666666,0.00033814,2]
[314072195,1707957033549,-151.08763083,0.00034157,7]
[314072197,1707957033558,-158.0,0.00034521,2]
[314072199,1707957033570,-6008.11270261,0.00034839,2]
[314072201,1707957033579,-151.08763083,0.00034854,4]
[314072202,1707957033588,-166.666666,0.00034859,2]
[314072203,1707957033597,-250.0,0.00035266,15]
[314072204,1707957033606,-151.08763083,0.00035565,2]
[314072205,1707957033616,-170.8756681,0.00035918,2]
[314072206,1707957033625,-158.0,0.00036247,2]
[314072207,1707957033634,-5000.0,0.00036252,7]
[314072209,1707957033643,-150.0,0.00036255,2]
[314072211,1707957033652,-155.0,0.00037,2]
[314072213,1707957033663,-158.12464775,0.00037087,7]
[314072214,1707957033672,-150.0,0.00037255,2]
[314072216,1707957033681,-1289.32449317,0.0003755,3]
[314072273,1707957038027,-158.56869746,0.00026091,2]
[314072276,1707957038037,-1985.51525787,0.0003755,3]
[314072278,1707957038048,-1725.16024896,0.0003755,3]
[314072280,1707957038057,-4027.36722758,0.00037899,2]
[314072285,1707957038095,-500.0,0.00037899,2]
[314072406,1707957043122,-158.0,0.00036,2]
[314072408,1707957043131,-109.36304732,0.00037899,2]
[314072410,1707957043144,-5336.66695268,0.00037899,2]
[314072412,1707957043154,-4280.63673483,0.00037899,2]
[314072414,1707957043166,-1165.39326517,0.00037899,2]
[314072416,1707957043175,-5446.03,0.00037899,2]
[314072418,1707957043184,-5446.03,0.00037899,2]
[314072420,1707957043193,-5446.03,0.00037899,2]
[314072422,1707957043202,-4105.68084346,0.00037899,2]
[314072425,1707957043215,-1340.34915654,0.00037899,2]
[314072427,1707957043224,-693.37885477,0.00037899,2]
[314072429,1707957043238,-1708.79461699,0.00037899,2]
[314072432,1707957043249,-1185.58919883,0.00037899,2]
[314072434,1707957043260,-1858.26732941,0.00037899,2]
[314072436,1707957043270,-163.29648472,0.00037899,2]
[314072556,1707957047404,-313.11416557,0.0003789,3]
[314072558,1707957047420,-278.92999984,0.0003789,3]
[314073269,1707958241479,-476.09,0.00031998,2]
[314073271,1707958241488,-426.90243036,0.00031998,4]
[314073273,1707958241497,-157.64395396,0.00032011,2]
[314073275,1707958241507,-6350.06795927,0.00032091,4]
[314073278,1707958241519,-3583.48706252,0.00032091,4]
[314073280,1707958241531,-24900.0,0.00032091,4]
[314073282,1707958241543,-403.5335302,0.00032091,4]
[314073284,1707958241554,-769.351994,0.00032091,4]
[314073287,1707958241566,-5117.8928232,0.00032091,4]
[314073289,1707958241578,-5204.81790322,0.00032091,4]
[314073291,1707958241589,-487.5164698,0.00032091,4]
[314073293,1707958241601,-1361.51496361,0.00032091,4]
[314073295,1707958241612,-10677.42306868,0.00032091,4]
[314073298,1707958241624,-305.75,0.00032091,4]
[314073300,1707958241635,-362.68449822,0.00032091,4]
[314073302,1707958241646,-301.87875,0.00032091,4]
[314073304,1707958241657,-5700.76502788,0.00032091,4]
[314073307,1707958241667,-378.4414659,0.00032111,3]
[314073308,1707958241676,-995.32833851,0.00032128,4]
[314073311,1707958241685,-3174.88680448,0.00033633,3]
[314073622,1707958244659,-1095.42319552,0.00033633,3]
[314073625,1707958244669,-2821.99994833,0.00033643,2]